Workbook

Sheet Variables
A1: Period
A2: Spot
A3: Not callable
A6: Convention | B6: Input
B7: Output
A9: Annual coupon rate | B9: 0.1 | D9: Spread | E9: 0
A10: Coupons per year | B10: 1 | D10: Market Bond Price
A11: Bond maturity (years) | B11: 4 | D11: Bullet Bond Price
A12: Steps to maturity | B12: =B10*B11*B13 -> 4 | D12: Call Option Value
A13: Times of cash flow | B13: 1
A15: Time (year) | B15: Cash flow | C15: Yield (%) | D15: Volatility (%) | E15: Strike price | F15: Callable period

Sheet Tree

Sheet Convergence

Sheet Example
A1: Input data
A3: Annual coupon rate | B3: 0.05 | D3: Spread | E3: 0.01
A4: Coupons per year | B4: 1
A5: Bond maturity (years) | B5: 2 | D5: Time increment (dt) = | E5: =B5/B6 -> 0.5
A6: Steps to maturity | B6: =B4*B5*B7 -> 4 | D6: Coupon rate (cr) = | E6: =B3/B4*100 -> 5
A7: Times of cash flow | B7: 2
A9: Time (year) | B9: Cash flow | C9: Yield | D9: Volatility | E9: Strike price | F9: Callable period
A10: 1 | B10: 5 | C10: 0.05 | D10: 0.2 | E10: 101 | F10: Period
A11: 2 | B11: 105 | C11: 0.06 | D11: 0.19 | E11: Not callable | F11: Not callable
A13: Rate tree
E14: 0.04816326754
D15: 0.04777553277
C16: 0.04194723135 | E16: 0.06301008617
B17: 0.05 | D17: 0.062946508
C18: 0.055659632 | E18: 0.08243378693
D19: 0.08293498031
E20: 0.1078451029
A21: Rate tree using the spread
E22: =E14+$E$3 -> 0.05816326754
D23: =D15+$E$3 -> 0.05777553277
C24: =C16+$E$3 -> 0.05194723135 | E24: =E16+$E$3 -> 0.07301008617
B25: =B17+$E$3 -> 0.06 | D25: =D17+$E$3 -> 0.072946508
C26: =C18+$E$3 -> 0.065659632 | E26: =E18+$E$3 -> 0.09243378693
D27: =D19+$E$3 -> 0.09293498031
E28: =E20+$E$3 -> 0.1178451029
A29: Discount factor tree using the spread
E30: =1/(1+E22*$E$5) -> 0.9717402072
D31: =1/(1+D23*$E$5) -> 0.9719233066
C32: =1/(1+C24*$E$5) -> 0.9746839341 | E32: =1/(1+E24*$E$5) -> 0.9647806411
B33: =1/(1+B25*$E$5) -> 0.9708737864 | D33: =1/(1+D25*$E$5) -> 0.9648102314
C34: =1/(1+C26*$E$5) -> 0.9682137217 | E34: =1/(1+E26*$E$5) -> 0.9558247494
D35: =1/(1+D27*$E$5) -> 0.9555958588
E36: =1/(1+E28*$E$5) -> 0.9443561275
A37: Zero coupon bond price using the spread
F38: 100
E39: =0.5*(F38+F40)*E30 -> 97.17402072
D40: =0.5*(E39+E41)*D31 -> 94.10748731 | F40: 100
C41: =0.5*(D40+D42)*C32 -> 91.01524202 | E41: =0.5*(F40+F42)*E32 -> 96.47806411
B42: =0.5*(C41+C43)*B33 -> 87.29145759 | D42: =0.5*(E41+E43)*D33 -> 92.65098656 | F42: 100
C43: =0.5*(D42+D44)*C34 -> 88.80516062 | E43: =0.5*(F42+F44)*E34 -> 95.58247494
D44: =0.5*(E43+E45)*D35 -> 90.79024885 | F44: 100
E45: =0.5*(F44+F46)*E36 -> 94.43561275
F46: 100
A47: Coupon paying bond price using the spread
F48: =100+$E$6 -> 105
E49: =0.5*(F48+F50)*E30 -> 102.0327218
D50: =0.5*(E49+E51)*D31+$E$6 -> 103.8128617 | F50: =100+$E$6 -> 105
C51: =0.5*(D50+D52)*C32 -> 100.4394238 | E51: =0.5*(F50+F52)*E32 -> 101.3019673
B52: =0.5*(C51+C53)*B33 -> 96.37180148 | D52: =0.5*(E51+E53)*D33+$E$6 -> 102.2835359 | F52: =100+$E$6 -> 105
C53: =0.5*(D52+D54)*C34 -> 98.08648726 | E53: =0.5*(F52+F54)*E34 -> 100.3615987
D54: =0.5*(E53+E55)*D35+$E$6 -> 100.3297613 | F54: =100+$E$6 -> 105
E55: =0.5*(F54+F56)*E36 -> 99.15739339
F56: =100+$E$6 -> 105
A58: Callable coupon paying bond price using the spread
F59: =100+$E$6 -> 105
E60: =MIN((0.5*(F59+F61)*E30),$E$10) -> 101
D61: =MIN((0.5*(E60+E62)*D31+$E$6),$E$10) -> 101 | F61: =100+$E$6 -> 105
C62: =0.5*(D61+D63)*C32 -> 98.44307734 | E62: =MIN((0.5*(F61+F63)*E32),$E$10) -> 101
B63: =0.5*(C62+C64)*B33 -> 95.10106606 | D63: =MIN((0.5*(E62+E64)*D33+$E$6),$E$10) -> 101 | F63: =100+$E$6 -> 105
C64: =0.5*(D63+D65)*C34 -> 97.46511873 | E64: =MIN((0.5*(F63+F65)*E34),$E$10) -> 100.3615987
D65: =MIN((0.5*(E64+E66)*D35+$E$6),$E$10) -> 100.3297613 | F65: =100+$E$6 -> 105
E66: =MIN((0.5*(F65+F67)*E36),$E$10) -> 99.15739339
F67: =100+$E$6 -> 105
A69: Call option value
B70: =B52-B63 -> 1.270735424
